fUSD/lending_fUSD_20251105
["ID","MTS","AMOUNT","RATE_DAILY","PERIOD"]
[393193286,1762309839236,-500.0,0.00021273,2]
[393193287,1762309839246,-172.37102183,0.00021273,2]
[393193288,1762309839256,-150.0,0.00021273,2]
[393193289,1762309839266,-150.0,0.00021273,2]
[393193290,1762309839277,-500.0,0.00021273,2]
[393193291,1762309839287,-500.0,0.00021273,2]
[393193292,1762309839297,-500.0,0.00021273,2]
[393193293,1762309839308,-510.55136191,0.00021273,2]
[393193294,1762309839318,-500.0,0.00021273,2]
[393193295,1762309839330,-200.0,0.00021273,2]
[393193296,1762309839340,-500.0,0.00021273,2]
[393193297,1762309839350,-500.0,0.00021273,2]
[393193298,1762309839360,-500.0,0.00021273,2]
[393193299,1762309839371,-500.0,0.00021273,2]
[393193300,1762309839380,-6314.67,0.0002137,2]
[393193301,1762309839390,-587.0,0.00021428,2]
[393193302,1762309839400,-587.0,0.00021428,2]
[393193303,1762309839411,-5659.46,0.00021473,2]
[393193304,1762309839421,-562.4427637,0.00021521,2]
[393193305,1762309839431,-1000.0,0.00021521,2]
[393193306,1762309839440,-171.37286122,0.00021521,2]
[393193307,1762309839450,-1000.0,0.00021521,2]
[393193308,1762309839459,-1000.0,0.00021521,2]
[393193309,1762309839469,-1000.0,0.00021521,2]
[393193310,1762309839478,-1000.0,0.00021521,2]
[393193311,1762309839487,-1000.0,0.00021521,2]
[393193312,1762309839497,-1000.0,0.00021521,2]
[393193313,1762309839507,-1001.34025058,0.00021521,2]
[393193314,1762309839516,-1000.0,0.00021521,2]
[393193315,1762309839537,-2000.0,0.00021616,2]
[393193316,1762309839546,-1000.0,0.00021616,2]
[393193317,1762309839556,-2351.0,0.00021639,2]
[393193318,1762309839566,-1002.7350988,0.00021821,2]
[393193319,1762309839575,-150.0,0.00021821,2]
[393193320,1762309839585,-1000.0,0.00021821,2]
[393193321,1762309839595,-250.0,0.00021821,2]
[393193322,1762309839605,-250.0,0.00021821,2]
[393193323,1762309839614,-1000.0,0.00021821,2]
[393193324,1762309839624,-1000.0,0.00021821,2]
[393193325,1762309839637,-1000.0,0.00021821,2]
[393193326,1762309839647,-1000.0,0.00021821,2]
[393193327,1762309839657,-1000.0,0.00021821,2]
[393193328,1762309839668,-1000.0,0.00021821,2]
[393193329,1762309839678,-1000.0,0.00021821,2]
[393193330,1762309839687,-1000.0,0.00021821,2]
[393193331,1762309839698,-166.66,0.00021853,2]
[393193332,1762309839709,-400.0,0.00021958,2]
[393193333,1762309839722,-182.75,0.00022,2]
[393193334,1762309839732,-1500.0,0.00022068,2]
[393193335,1762309839743,-835.28782789,0.00022068,2]
[393193336,1762309839754,-1521.19557868,0.00022068,2]
[393193337,1762309839766,-1500.0,0.00022068,2]
[393193338,1762309839777,-1500.0,0.00022068,2]
[393193339,1762309839788,-1500.0,0.00022068,2]
[393193340,1762309839798,-1289.26333301,0.00022068,2]
[393193341,1762309839808,-1338.88,0.00022099,2]
[393193342,1762309839819,-2281.0814461,0.000221,2]
[393193343,1762309839832,-2231.77,0.00022138,2]
[393193344,1762309839843,-2500.0,0.00022164,2]
[393193345,1762309839852,-500.0,0.00022173,2]
[393193346,1762309839862,-500.0,0.00022173,2]
[393193347,1762309839872,-500.0,0.00022173,2]
[393193348,1762309839882,-162.06676561,0.00022173,2]
[393193349,1762309839893,-151.0,0.00022187,2]
[393193350,1762309839903,-151.0,0.00022187,2]
[393193351,1762309839913,-151.0,0.00022187,2]
[393193352,1762309839925,-151.0,0.00022187,2]
[393193353,1762309839936,-151.0,0.00022187,2]
[393193354,1762309839946,-151.0,0.00022187,2]
[393193355,1762309839956,-151.0,0.00022187,2]
[393193356,1762309839965,-151.0,0.00022187,2]
[393193357,1762309839974,-151.0,0.00022187,2]
[393193358,1762309839983,-151.0,0.00022187,2]
[393193359,1762309839992,-151.0,0.00022187,2]
[393193360,1762309840001,-151.0,0.00022187,2]
[393193361,1762309840011,-151.0,0.00022187,2]
[393193362,1762309840020,-151.0,0.00022187,2]
[393193363,1762309840029,-151.0,0.00022187,2]
[393193364,1762309840038,-151.0,0.00022187,2]
[393193365,1762309840047,-151.0,0.00022187,2]
[393193366,1762309840056,-151.0,0.00022187,2]
[393193367,1762309840065,-151.0,0.00022187,2]
[393193368,1762309840076,-151.0,0.00022187,2]
[393193369,1762309840088,-150.4,0.0002219,2]
[393193370,1762309840098,-150.4,0.0002219,2]
[393193371,1762309840108,-150.4,0.0002219,2]
[393193372,1762309840117,-1901.92314782,0.0002219,2]
[393193373,1762309840126,-154.90345234,0.00022197,2]
[393193374,1762309840136,-500.0,0.00022199,2]
[393193375,1762309840145,-500.0,0.00022199,2]
[393193376,1762309840155,-500.0,0.00022199,2]
[393193377,1762309840164,-500.0,0.00022199,2]
[393193378,1762309840173,-500.0,0.00022199,2]
[393193379,1762309840184,-500.0,0.00022199,2]
[393193380,1762309840193,-500.0,0.00022199,2]
[393193381,1762309840202,-500.0,0.00022199,2]
[393193382,1762309840211,-500.0,0.00022199,2]
[393193383,1762309840221,-562.28,0.00022199,2]
[393193384,1762309840230,-500.0,0.00022199,2]
[393193385,1762309840240,-500.0,0.00022199,2]
[393193386,1762309840249,-500.0,0.00022199,2]
[393193387,1762309840258,-500.0,0.00022199,2]
[393193388,1762309840267,-500.0,0.00022199,2]
[393193389,1762309840277,-500.0,0.00022199,2]
[393193390,1762309840286,-420000.0,0.000222,2]
[393193391,1762309840296,-1000.0,0.000222,2]
[393193392,1762309840309,-9984.8933,0.000222,2]
[393193393,1762309840318,-120832.86665106,0.000222,2]
[393193394,1762309840330,-5659.46,0.00022219,2]
[393193395,1762309840339,-538.86,0.00022299,2]
[393193396,1762309840348,-384.89972206,0.00022299,2]
[393193397,1762309840358,-562.28419853,0.00022299,2]
[393193398,1762309840367,-150.0,0.00022368,2]
[393193399,1762309840377,-1500.0,0.00022368,2]
[393193400,1762309840386,-350.0,0.00022368,2]
[393193401,1762309840395,-253.96720107,0.00022368,2]
[393193402,1762309840405,-866.15389441,0.00022368,2]
[393193403,1762309840414,-1500.0,0.00022368,2]
[393193404,1762309840423,-1500.0,0.00022368,2]
[393193405,1762309840432,-1500.0,0.00022368,2]
[393193406,1762309840441,-1500.0,0.00022368,2]
[393193407,1762309840452,-1500.0,0.00022368,2]
[393193408,1762309840462,-1338.88,0.00022373,2]
[393193409,1762309840471,-1000.0,0.00022379,2]
[393193410,1762309840481,-1852.42,0.00022405,2]
[393193411,1762309840491,-166.66,0.00022529,2]
[393193412,1762309840500,-2281.0814461,0.00022582,2]
[393193413,1762309840510,-500.0,0.00022588,2]
[393193414,1762309840519,-2000.0,0.00022616,2]
[393193415,1762309840529,-300.08700211,0.00022616,2]
[393193416,1762309840539,-2000.0,0.00022616,2]
[393193417,1762309840548,-2000.0,0.00022616,2]
[393193418,1762309840557,-600.0,0.00022642,2]
[393193419,1762309840566,-1338.88,0.00022647,2]
[393193420,1762309840577,-151.47,0.00022696,2]
[393193421,1762309840587,-150.4,0.00022702,2]
[393193422,1762309840597,-8197.5825012,0.00022708,2]
[393193423,1762309840607,-3000.0,0.00022712,2]
[393193424,1762309840616,-1000.0,0.00022721,2]
[393193425,1762309840625,-500.40594089,0.00022756,2]
[393193427,1762309840884,-465.17788788,0.00022784,2]
[393193428,1762309840894,-538.86,0.0002282,2]
[393193429,1762309840903,-19201.75201872,0.000229,2]
[393193430,1762309840912,-216.03107045,0.00022916,2]
[393193431,1762309840921,-2000.0,0.00022916,2]
[393193432,1762309840930,-531.80242415,0.00022916,2]
[393193433,1762309840939,-2000.0,0.00022916,2]
[393193434,1762309840948,-776.15714942,0.00022916,2]
[393193435,1762309840957,-732.45982984,0.00022916,2]
[393193436,1762309840966,-977.06605906,0.00022916,2]
[393193437,1762309840975,-2000.0,0.00022916,2]
[393193438,1762309840984,-1338.88,0.00022921,2]
[393193439,1762309840993,-5659.46,0.00022965,2]
[393193440,1762309841004,-435.50479199,0.00023,2]
[393193441,1762309841013,-997.64492603,0.00023,2]
[393193442,1762309841022,-2281.0814461,0.00023064,2]
[393193443,1762309841031,-2560.15769233,0.000231,2]
[393193444,1762309841039,-2500.0,0.00023164,2]
[393193445,1762309841049,-1003.08224355,0.00023164,2]
[393193446,1762309841058,-1517.24613966,0.00023164,2]
[393193447,1762309841067,-150.4,0.0002319,2]
[393193448,1762309841077,-150.4,0.0002319,2]
[393193449,1762309841086,-1338.88,0.00023195,2]
[393193450,1762309841095,-51655.6782552,0.000232,2]
[393193451,1762309841105,-166.66,0.00023206,2]
[393193452,1762309841114,-1165.26097583,0.0002326,2]
[393193453,1762309841123,-1500.0,0.00023268,2]
[393193454,1762309841132,-898.16663957,0.00023327,2]
[393193455,1762309841141,-823.0,0.00023381,2]
[393193456,1762309841151,-500.0,0.00023464,2]
[393193457,1762309841160,-2500.0,0.00023464,2]
[393193458,1762309841168,-2500.0,0.00023464,2]
[393193459,1762309841178,-166.66,0.00023466,30]
[393193460,1762309841187,-1338.88,0.00023469,2]
[393193461,1762309841196,-200.0,0.000235,2]
[393193462,1762309841205,-1007.01,0.00023653,2]
[393193463,1762309841214,-5659.46,0.00023712,2]
[393193464,1762309841223,-1003.52929673,0.00023712,2]
[393193465,1762309841232,-3292.0,0.00023727,2]
[393193466,1762309841241,-193.14,0.00023731,2]
[393193467,1762309841250,-1338.88,0.00023743,2]
[393193468,1762309841259,-2000.0,0.00023816,2]
[393193469,1762309841268,-166.66,0.00023883,2]
[393193470,1762309841279,-166.66,0.0002396,30]
[393193471,1762309841287,-538.86,0.00023975,2]
[393193472,1762309841296,-1010.61467738,0.00024,2]
[393193473,1762309841305,-773.15965514,0.00024,2]
[393193474,1762309841314,-3600.0,0.00024,2]
[393193475,1762309841323,-16047.19172971,0.00024,2]
[393193476,1762309841335,-3000.0,0.00024012,2]
[393193477,1762309841344,-2989.4221674,0.00024012,2]
[393193478,1762309841353,-1338.88,0.00024017,2]
[393193479,1762309841362,-182.75,0.00024035,2]
[393193480,1762309841371,-371.76424894,0.00024043,2]
[393193481,1762309841380,-150.4,0.000242,2]
[393193482,1762309841389,-417.5457055,0.0002421,2]
[393193483,1762309841401,-3658.78635368,0.0002421,2]
[393193484,1762309841410,-1338.88,0.00024291,2]
[393193485,1762309841419,-2500.0,0.00024364,2]
[393193486,1762309841428,-166.66,0.00024454,30]
[393193487,1762309841437,-5659.46,0.00024458,2]
[393193488,1762309841446,-3500.0,0.0002456,2]
[393193489,1762309841455,-1338.88,0.00024565,2]
[393193490,1762309841464,-591.3525063,0.0002465,2]
[393193491,1762309841473,-500.0,0.00024657,2]
[393193492,1762309841482,-500.0,0.00024657,2]
[393193493,1762309841491,-500.0,0.00024657,2]
[393193494,1762309841500,-500.0,0.00024657,2]
[393193495,1762309841509,-500.0,0.00024657,2]
[393193496,1762309841518,-5000.0,0.000247,2]
[393193497,1762309841527,-465.17788788,0.00024709,2]
[393193498,1762309841536,-477.76462643,0.00024742,2]
[393193499,1762309841545,-501.4824196,0.00024773,2]
[393193500,1762309841554,-500.0,0.00024773,2]
[393193501,1762309841563,-150.4,0.0002479,2]
[393193502,1762309841571,-150.4,0.0002479,2]
[393193503,1762309841583,-150.4,0.0002479,2]
[393193504,1762309841592,-150.4,0.0002479,2]
[393193505,1762309841601,-150.4,0.0002479,2]
[393193506,1762309841610,-150.4,0.0002479,2]
[393193507,1762309841619,-150.4,0.0002479,2]
[393193508,1762309841628,-150.4,0.0002479,2]
[393193509,1762309841639,-500.0,0.00024799,2]
[393193510,1762309841648,-500.0,0.00024799,2]
[393193511,1762309841657,-500.0,0.00024799,2]
[393193512,1762309841666,-384081.325748,0.000248,3]
[393193513,1762309841676,-153.340919,0.000248,7]
[393193514,1762309841686,-151.0,0.000248,7]
[393193515,1762309841695,-151.0,0.000248,7]
[393193516,1762309841704,-151.0,0.000248,7]
[393193517,1762309841715,-161.96403,0.000248,7]
[393193518,1762309841724,-151.0,0.000248,7]
[393193519,1762309841733,-151.0,0.000248,7]
[393193520,1762309841743,-1338.88,0.00024839,2]
[393193521,1762309841752,-1000.0,0.00024866,2]
[393193522,1762309841761,-211.91475997,0.00024873,2]
[393193523,1762309841770,-500.20791126,0.00024873,2]
[393193524,1762309841779,-805.0,0.00024877,2]
[393193525,1762309841789,-150.4,0.0002489,2]
[393193526,1762309841800,-150.4,0.0002489,2]
[393193527,1762309841809,-500.0,0.00024899,2]
[393193528,1762309841818,-500.0,0.00024899,2]
[393193529,1762309841828,-151.0,0.000249,7]
[393193530,1762309841837,-180.844811,0.000249,7]
[393193531,1762309841846,-151.0,0.000249,7]
[393193532,1762309841855,-151.0,0.000249,7]
[393193533,1762309841865,-151.0,0.000249,7]
[393193534,1762309841874,-291.198301,0.000249,7]
[393193535,1762309841883,-291.198301,0.000249,7]
[393193536,1762309841892,-291.198301,0.000249,7]
[393193537,1762309841901,-291.198301,0.000249,7]
[393193538,1762309841910,-151.0,0.000249,7]
[393193539,1762309841919,-445.2915039,0.000249,2]
[393193540,1762309841928,-82725.908251,0.000249,3]
[393193541,1762309841938,-151.0,0.000249,7]
[393193542,1762309841947,-151.0,0.000249,7]
[393193543,1762309841955,-151.0,0.000249,7]
[393193544,1762309841965,-151.900068,0.000249,7]
[393193545,1762309841974,-507.38751411,0.00024912,2]
[393193546,1762309841983,-8197.5825012,0.00024918,2]
[393193547,1762309841992,-500.0,0.00024932,2]
[393193548,1762309842001,-500.0,0.00024932,2]
[393193549,1762309842010,-500.0,0.00024932,2]
[393193550,1762309842019,-500.0,0.00024932,2]
[393193551,1762309842028,-166.66,0.00024948,30]
[393193552,1762309842038,-1099.96,0.00025,2]
[393193553,1762309842047,-601.46356491,0.00025,2]
[393193554,1762309842056,-1729.03653482,0.00025,2]
[393193555,1762309842065,-735.7447283,0.00025,2]
[393193556,1762309842074,-165.24457208,0.00025,2]
[393193557,1762309842085,-3291.57432873,0.00025,2]
[393193558,1762309842094,-500.0,0.00025025,2]
[393193559,1762309842103,-500.0,0.00025025,2]
[393193560,1762309842112,-564.89446183,0.00025025,2]
[393193561,1762309842122,-500.0,0.00025025,2]
[393193562,1762309842130,-500.0,0.00025025,2]
[393193563,1762309842140,-4000.0,0.00025108,2]
[393193564,1762309842149,-1338.98432609,0.00025113,2]
[393193565,1762309842159,-500.0,0.00025178,2]
[393193566,1762309842168,-5659.46,0.00025204,2]
[393193567,1762309842178,-1000.0,0.00025321,2]
[393193568,1762309842187,-500.0,0.00025392,2]
[393193569,1762309842196,-166.66,0.00025442,30]
[393193570,1762309842206,-1099.96,0.000255,2]
[393193571,1762309842215,-1152.0,0.00025511,2]
[393193572,1762309842224,-1000.0,0.00025573,2]
[393193573,1762309842233,-1011.48394637,0.00025573,2]
[393193574,1762309842243,-1000.0,0.00025573,2]
[393193575,1762309842252,-500.87783296,0.00025573,2]
[393193576,1762309842262,-686.87253938,0.00025656,2]
[393193577,1762309842271,-269.91,0.00025818,2]
[393193578,1762309842280,-325.63609116,0.00025868,2]
[393193579,1762309842289,-150.4,0.00025869,2]
[393193580,1762309842298,-20087.29625479,0.00025879,2]
[393193581,1762309842307,-166.66,0.00025936,30]
[393193582,1762309842316,-500.0,0.0002595,2]
[393193583,1762309842325,-5659.46,0.0002595,2]
[393193584,1762309842334,-593.35020443,0.0002599,2]
[393193585,1762309842343,-4469.38720675,0.00026,2]
[393193586,1762309842352,-4138.65,0.00026,2]
[393193587,1762309842361,-213.82965862,0.00026,2]
[393193588,1762309842370,-160.95307683,0.00026,2]
[393193589,1762309842380,-1099.96,0.00026,30]
[393193590,1762309842389,-4609.0,0.00026016,2]
[393193591,1762309842398,-182.75,0.00026071,7]
[393193592,1762309842406,-1500.0,0.00026121,2]
[393193593,1762309842415,-697.03833275,0.00026121,2]
[393193594,1762309842425,-150.4,0.0002639,2]
[393193595,1762309842434,-27149.90272033,0.000264,2]
[393193596,1762309842443,-465.17788788,0.00026633,2]
[393193597,1762309842451,-1256.47893979,0.00026669,2]
[393193598,1762309842460,-396.69,0.00026676,2]
[393193599,1762309842469,-5659.46,0.00026696,2]
[393193600,1762309842477,-371.76424894,0.00026871,2]
[393193601,1762309842486,-250.0,0.00027,2]
[393193602,1762309842495,-1021.02311256,0.00027,2]
[393193603,1762309842504,-530.0,0.00027,2]
[393193604,1762309842513,-8197.5825012,0.00027128,2]
[393193605,1762309842522,-1000.0,0.00027353,2]
[393193606,1762309842531,-207.54456428,0.00027362,4]
[393193607,1762309842540,-150.4,0.00027387,2]
[393193608,1762309842549,-442.57857532,0.0002739,2]
[393193609,1762309842558,-151.0,0.00027397,31]
[393193610,1762309842567,-151.0,0.00027397,31]
[393193611,1762309842577,-155.848415,0.00027397,31]
[393193612,1762309842587,-151.0,0.00027397,31]
[393193613,1762309842596,-151.0,0.00027397,31]
[393193614,1762309842605,-273.201537,0.00027397,31]
[393193615,1762309842613,-151.0,0.00027397,31]
[393193616,1762309842622,-151.0,0.00027397,31]
[393193617,1762309842630,-151.0,0.00027397,31]
[393193618,1762309842639,-152.7892,0.00027397,31]
[393193619,1762309842649,-151.0,0.00027397,31]
[393193620,1762309842657,-151.0,0.00027397,31]
[393193621,1762309842665,-151.0,0.00027397,31]
[393193622,1762309842674,-151.0,0.00027397,31]
[393193623,1762309842683,-151.0,0.00027397,31]
[393193624,1762309842691,-151.0,0.00027397,31]
[393193625,1762309842700,-151.0,0.00027397,31]
[393193626,1762309842708,-151.0,0.00027397,31]
[393193627,1762309842719,-151.0,0.00027397,31]
[393193628,1762309842728,-151.0,0.00027397,31]
[393193629,1762309842736,-181.678894,0.00027397,31]
[393193630,1762309842745,-151.0,0.00027397,31]
[393193631,1762309842754,-151.842079,0.00027397,31]
[393193632,1762309842762,-151.0,0.00027397,31]
[393193633,1762309842771,-330.136094,0.00027397,31]
[393193634,1762309842779,-330.136094,0.00027397,31]
[393193635,1762309842788,-330.136094,0.00027397,31]
[393193636,1762309842797,-151.0,0.00027397,31]
[393193637,1762309842806,-330.136094,0.00027397,31]
[393193638,1762309842814,-153.730207,0.00027397,31]
[393193639,1762309842823,-159.320944,0.00027397,31]
[393193640,1762309842834,-245.870156,0.00027397,31]
[393193641,1762309842843,-151.0,0.00027397,31]
[393193642,1762309842852,-151.0,0.00027397,31]
[393193643,1762309842861,-151.0,0.00027397,31]
[393193644,1762309842870,-151.0,0.00027397,31]
[393193645,1762309842879,-151.0,0.00027397,31]
[393193646,1762309842888,-151.805122,0.00027397,31]
[393193647,1762309842897,-151.0,0.00027397,31]
[393193648,1762309842907,-151.0,0.00027397,31]
[393193649,1762309842917,-151.0,0.00027397,31]
[393193650,1762309842926,-151.812216,0.00027397,31]
[393193651,1762309842935,-233.420837,0.00027397,31]
[393193652,1762309842944,-151.0,0.00027397,31]
[393193653,1762309842953,-151.0,0.00027397,31]
[393193654,1762309842962,-151.0,0.00027397,31]
[393193655,1762309842970,-185.285369,0.00027397,31]
[393193656,1762309842980,-151.0,0.00027397,31]
[393193657,1762309842989,-151.0,0.00027397,31]
[393193658,1762309842997,-151.0,0.00027397,31]
[393193659,1762309843006,-151.0,0.00027397,31]
[393193660,1762309843014,-155.051565,0.00027397,31]
[393193661,1762309843023,-153.425379,0.00027397,31]
[393193662,1762309843032,-151.0,0.00027397,31]
[393193663,1762309843041,-151.0,0.00027397,31]
[393193664,1762309843050,-153.186155,0.00027397,31]
[393193666,1762309843058,-151.0,0.00027397,31]
[393193667,1762309843067,-151.0,0.00027397,31]
[393193668,1762309843075,-151.0,0.00027397,31]
[393193669,1762309843088,-151.0,0.00027397,31]
[393193670,1762309843096,-284.999809,0.00027397,31]
[393193671,1762309843104,-155.375493,0.00027397,31]
[393193672,1762309843112,-217.205769,0.00027397,31]
[393193673,1762309843121,-217.205769,0.00027397,31]
[393193674,1762309843130,-217.205769,0.00027397,31]
[393193675,1762309843139,-151.0,0.00027397,31]
[393193676,1762309843147,-217.205769,0.00027397,31]
[393193677,1762309843154,-151.0,0.00027397,31]
[393193678,1762309843162,-279.732024,0.00027397,31]
[393193679,1762309843170,-151.0,0.00027397,31]
[393193680,1762309843180,-151.0,0.00027397,31]
[393193681,1762309843188,-151.0,0.00027397,31]
[393193682,1762309843196,-151.0,0.00027397,31]
[393193683,1762309843204,-151.0,0.00027397,31]
[393193684,1762309843212,-568.364366,0.00027397,31]
[393193685,1762309843220,-162.595946,0.00027397,31]
[393193686,1762309843228,-151.0,0.00027397,31]
[393193687,1762309843236,-568.364366,0.00027397,31]
[393193688,1762309843244,-162.481363,0.00027397,31]
[393193689,1762309843252,-568.364366,0.00027397,31]
[393193690,1762309843261,-568.364366,0.00027397,31]
[393193691,1762309843270,-252.467454,0.00027397,31]
[393193692,1762309843279,-151.0,0.00027397,31]
[393193693,1762309843288,-252.467454,0.00027397,31]
[393193694,1762309843297,-252.467454,0.00027397,31]
[393193695,1762309843306,-252.467454,0.00027397,31]
[393193696,1762309843315,-155.982345,0.00027397,31]
[393193697,1762309843326,-151.0,0.00027397,31]
[393193698,1762309843338,-151.0,0.00027397,31]
[393193699,1762309843347,-151.0,0.00027397,31]
[393193700,1762309843356,-151.0,0.00027397,31]
[393193701,1762309843365,-151.0,0.00027397,31]
[393193702,1762309843374,-151.0,0.00027397,31]
[393193703,1762309843394,-253.379154,0.00027397,31]
[393193704,1762309843403,-151.0,0.00027397,31]
[393193705,1762309843411,-201.136495,0.00027397,31]
[393193706,1762309843421,-247.089285,0.00027397,31]
[393193707,1762309843430,-151.0,0.00027397,31]
[393193708,1762309843439,-151.08,0.000274,7]
[393193709,1762309843449,-300.0,0.00027422,10]
[393193710,1762309843458,-279.70319031,0.00027422,10]
[393193711,1762309843468,-666.0,0.00027422,10]
[393193712,1762309843478,-5659.46,0.00027443,2]
[393193713,1762309843487,-300.0,0.00027446,10]
[393193714,1762309843496,-422.70282212,0.00027446,10]
[393193715,1762309843506,-1613.0,0.00027835,2]
[393193716,1762309843515,-150.8199178,0.00028058,2]
[393193717,1762309843525,-158.7764836,0.00028058,2]
[393193718,1762309843534,-154.29275356,0.00028058,2]
[393193719,1762309843544,-150.0,0.00028058,2]
[393193720,1762309843553,-155.34029524,0.00028058,2]
[393193721,1762309843562,-152.42601185,0.00028058,2]
[393193722,1762309843571,-150.42731866,0.00028058,2]
[393193723,1762309843582,-152.10989267,0.00028058,2]
[393193724,1762309843592,-150.0,0.00028058,2]
[393193725,1762309843601,-500.0,0.00028058,2]
[393193726,1762309843610,-152.84105378,0.00028058,2]
[393193727,1762309843620,-433.0,0.00028058,2]
[393193728,1762309843629,-556.0,0.00028058,2]
[393193729,1762309843643,-150.0,0.00028058,2]
[393193730,1762309843652,-150.8104487,0.00028058,2]
[393193731,1762309843661,-150.0,0.00028058,2]
[393193732,1762309843670,-152.72526817,0.00028058,2]
[393193733,1762309843680,-150.53676099,0.00028058,2]
[393193734,1762309843689,-500.0,0.00028058,2]
[393193735,1762309843699,-150.0,0.00028058,2]
[393193736,1762309843708,-150.59572911,0.00028058,2]
[393193737,1762309843719,-150.0,0.00028058,2]
[393193738,1762309843729,-150.50069053,0.00028058,2]
[393193739,1762309843739,-500.0,0.00028058,2]
[393193740,1762309843748,-500.0,0.00028058,2]
[393193741,1762309843757,-500.0,0.00028058,2]
[393193742,1762309843767,-213.18490842,0.00028058,2]
[393193743,1762309843776,-500.0,0.00028058,2]
[393193744,1762309843786,-500.0,0.00028058,2]
[393193745,1762309843795,-150.8351521,0.00028058,2]
[393193746,1762309843804,-150.0,0.00028058,2]
[393193747,1762309843814,-150.0,0.00028058,2]
[393193748,1762309843824,-500.0,0.00028058,2]
[393193749,1762309843834,-154.41907162,0.00028058,2]
[393193750,1762309843843,-154.17848018,0.00028058,2]
[393193751,1762309843852,-162.35889361,0.00028058,2]
[393193752,1762309843861,-500.0,0.00028058,2]
[393193753,1762309843872,-150.0,0.00028058,2]
[393193754,1762309843881,-150.0,0.00028058,2]
[393193755,1762309843891,-500.0,0.00028058,2]
[393193756,1762309843900,-150.0,0.00028058,2]
[393193757,1762309843910,-150.0,0.00028058,2]
[393193758,1762309843920,-150.0,0.00028058,2]
[393193759,1762309843929,-500.0,0.00028058,2]
[393193760,1762309843939,-500.0,0.00028058,2]
[393193761,1762309843948,-182.75,0.00028106,30]
[393193762,1762309843957,-5659.46,0.00028189,2]
[393193763,1762309843966,-150.0,0.00028195,2]
[393193764,1762309843975,-150.0,0.00028195,2]
[393193765,1762309843984,-500.0,0.00028195,2]
[393193766,1762309843993,-433.0,0.00028195,2]
[393193767,1762309844002,-556.0,0.00028195,2]
[393193768,1762309844011,-150.82628027,0.00028195,2]
[393193769,1762309844020,-154.29458154,0.00028195,2]
[393193770,1762309844029,-511.82257501,0.00028195,2]
[393193771,1762309844038,-152.83385556,0.00028195,2]
[393193772,1762309844047,-150.0,0.00028195,2]
[393193773,1762309844056,-500.0,0.00028195,2]
[393193774,1762309844065,-500.0,0.00028195,2]
[393193775,1762309844075,-150.0,0.00028195,2]
[393193776,1762309844085,-150.0,0.00028195,2]
[393193777,1762309844094,-500.0,0.00028195,2]
[393193778,1762309844104,-500.0,0.00028195,2]
[393193779,1762309844113,-154.19012846,0.00028195,2]
[393193780,1762309844122,-458.65523748,0.00028195,2]
[393193781,1762309844131,-190.62744425,0.00028195,2]
[393193782,1762309844141,-500.0,0.00028195,2]
[393193783,1762309844150,-500.0,0.00028195,2]
[393193784,1762309844159,-500.0,0.00028196,2]
[393193785,1762309844168,-150.0,0.00028332,2]
[393193786,1762309844177,-500.0,0.00028332,2]
[393193787,1762309844186,-433.0,0.00028332,2]